{"text_format":"1","workbook":"xlsx","n_sheets":3,"sheets":["Results","Data","Subdomains"],"not_rendered":{"charts":0,"images":0,"macros":1,"external_links":1,"defined_names":1883,"comments":0,"pivot_tables":0},"unopened":[],"bounds":{"document_bytes":16777216,"sheet_cells":100000,"rows_first":2000,"rows_last":500,"rows_between":2000,"halvings":0,"cell_chars":16384,"cell_head_chars":4096},"cells_cut":0,"cells_raw":0,"read":"whole","date_system":"1900"}

{"sheet":"Results","index":0,"n_rows":30,"n_cols":9,"rows_kept":30,"cut":false,"hidden":false,"merged":[[0,5,2,8]]}
["Search Term","Analyst","Start:",40645.961956018517,null,"Craigslist Metasearch"]
["State","Arkansas","Finish:",40645.96199074074]
[null,null,"time",{"$f":"IF(D2<>\"\",D2-D1,\"\")","v":3.4722223062999547E-5}]
[null,null,null,null,null,null,null,"Listings",{"$f":"COUNTA(A:A)-3","v":25}]
["Location",null,"Url","Job Listing"]
["Fayetteville, AR",null,"http://fayar.craigslist.org/search/jjj?query=Analyst&srchType=T","Apr 5 - Pricing Analyst - (Tontitown, AR) transportation"]
["Fayetteville, AR",null,"http://fayar.craigslist.org/search/jjj?query=Analyst&srchType=T","Apr 5 - Pricing Analyst - (Tontitown, AR) business/mgmt"]
["Fayetteville, AR",null,"http://fayar.craigslist.org/search/jjj?query=Analyst&srchType=T","Mar 31 - JAVA Programmer Analyst - (Fayetteville, AR) software/QA/DBA/etc"]
["Fayetteville, AR",null,"http://fayar.craigslist.org/search/jjj?query=Analyst&srchType=T","Mar 21 - Workforce Analyst - (Fayetteville ar) technical support"]
["Fayetteville, AR",null,"http://fayar.craigslist.org/search/jjj?query=Analyst&srchType=T","Mar 17 - Top Software Developer / Technical Business Analyst Needed ASAP - (Bentonville, AR) software/QA/DBA/etc"]
["Fayetteville, AR",null,"http://fayar.craigslist.org/search/jjj?query=Analyst&srchType=T","Mar 16 - RETAIL ANALYST - (Chicago, IL ) business/mgmt"]
["Fayetteville, AR",null,"http://fayar.craigslist.org/search/jjj?query=Analyst&srchType=T","Mar 16 - Web Developer/IT Support Analyst - (Tontitown, AR) web/HTML/info design"]
["Fayetteville, AR",null,"http://fayar.craigslist.org/search/jjj?query=Analyst&srchType=T","Mar 15 - French/English Bilingual ServiceDesk Analyst - (Fayetteville) technical support"]
["Fayetteville, AR",null,"http://fayar.craigslist.org/search/jjj?query=Analyst&srchType=T","Mar 13 - Help Desk Analyst - (Fayetteville, AR) technical support"]
["Fayetteville, AR",null,"http://fayar.craigslist.org/search/jjj?query=Analyst&srchType=T","Mar 7 - French/English Multi Lingual ServiceDesk Analyst - (fayetteville, AR) technical support"]
["Fayetteville, AR",null,"http://fayar.craigslist.org/search/jjj?query=Analyst&srchType=T","Mar 2 - Workforce Analyst - (fayetteville ar) technical support"]
["Fayetteville, AR",null,"http://fayar.craigslist.org/search/jjj?query=Analyst&srchType=T","Mar 2 - Clearing & Validation Data Analyst - (Connecticut) accounting/finance"]
["Fayetteville, AR",null,"http://fayar.craigslist.org/search/jjj?query=Analyst&srchType=T","Mar 1 - Web Developer/IT Support Analyst - (Tontitown, AR) web/HTML/info design"]
["Fayetteville, AR",null,"http://fayar.craigslist.org/search/jjj?query=Analyst&srchType=T","Feb 28 - Analyst - (Fayetteville, AR) marketing/advertising/PR"]
["Little Rock, AR",null,"http://littlerock.craigslist.org/search/jjj?query=Analyst&srchType=T","Mar 30 - Benefits Representative/Data Analyst - (Little Rock) admin/office"]
["Little Rock, AR",null,"http://littlerock.craigslist.org/search/jjj?query=Analyst&srchType=T","Mar 28 - Business Analyst/Leads Furnished - (Little Rock AR.) sales"]
["Little Rock, AR",null,"http://littlerock.craigslist.org/search/jjj?query=Analyst&srchType=T","Mar 27 - SAP ABAP Analyst - (Little Rock) software/QA/DBA/etc"]
["Little Rock, AR",null,"http://littlerock.craigslist.org/search/jjj?query=Analyst&srchType=T","Mar 23 - Clearing & Validation Data Analyst - (Connecticut) accounting/finance"]
["Little Rock, AR",null,"http://littlerock.craigslist.org/search/jjj?query=Analyst&srchType=T","Mar 17 - Data Analyst - (Little Rock) systems/networking"]
["Little Rock, AR",null,"http://littlerock.craigslist.org/search/jjj?query=Analyst&srchType=T","Mar 15 - Programmer Analyst - (NY,NJ,CT) software/QA/DBA/etc"]
["Little Rock, AR",null,"http://littlerock.craigslist.org/search/jjj?query=Analyst&srchType=T","Mar 14 - Data Analyst / Crystal Reports Developer - (Conway) software/QA/DBA/etc"]
["Little Rock, AR",null,"http://littlerock.craigslist.org/search/jjj?query=Analyst&srchType=T","Mar 3 - GIS Analyst (Ref: 250908) - (Little Rock, AR) architect/engineer/CAD"]
["Little Rock, AR",null,"http://littlerock.craigslist.org/search/jjj?query=Analyst&srchType=T","Mar 3 - GIS Analyst (Ref: 250908) - (Little Rock, AR) software/QA/DBA/etc"]
["Little Rock, AR",null,"http://littlerock.craigslist.org/search/jjj?query=Analyst&srchType=T","Feb 28 - Marketing Analyst - Campaign Management - (Little Rock) marketing/advertising/PR"]
["Little Rock, AR",null,"http://littlerock.craigslist.org/search/jjj?query=Analyst&srchType=T","Feb 26 - EXPORT OPERATIONS ANALYST - (NORTHEAST USA) legal/paralegal"]

{"sheet":"Data","index":1,"n_rows":42,"n_cols":4,"rows_kept":42,"cut":false,"hidden":false,"merged":[]}
["[ help ] [ post ] little rock craigslist > all jobs"]
[]
["jobs"]
["search for:","in:",null,"title only entire post"]
[null,"telecommute contract internship part-time non-profit",null,"has image"]
[]
[]
["sort by most recent best match"]
[]
["    Found: 11 Displaying: 1 - 11"]
[]
["Mar 30 - Benefits Representative/Data Analyst - (Little Rock) admin/office"]
[]
["Mar 28 - Business Analyst/Leads Furnished - (Little Rock AR.) sales"]
[]
["Mar 27 - SAP ABAP Analyst - (Little Rock) software/QA/DBA/etc"]
[]
["Mar 23 - Clearing & Validation Data Analyst - (Connecticut) accounting/finance"]
[]
["Mar 17 - Data Analyst - (Little Rock) systems/networking"]
[]
["Mar 15 - Programmer Analyst - (NY,NJ,CT) software/QA/DBA/etc"]
[]
["Mar 14 - Data Analyst / Crystal Reports Developer - (Conway) software/QA/DBA/etc"]
[]
["Mar 3 - GIS Analyst (Ref: 250908) - (Little Rock, AR) architect/engineer/CAD"]
[]
["Mar 3 - GIS Analyst (Ref: 250908) - (Little Rock, AR) software/QA/DBA/etc"]
[]
["Feb 28 - Marketing Analyst - Campaign Management - (Little Rock) marketing/advertising/PR"]
[]
["Feb 26 - EXPORT OPERATIONS ANALYST - (NORTHEAST USA) legal/paralegal"]
[]
[]
["sort by most recent best match"]
[]
["    Found: 11 Displaying: 1 - 11"]
[]
[]
[]
["Copyright © 2011 craigslist, inc."]
["RSS (?)"]

{"sheet":"Subdomains","index":2,"n_rows":268,"n_cols":11,"rows_kept":268,"cut":false,"hidden":false,"merged":[]}
["Subdomain","Location","Region",1,null,"Region","Abbreviation","Number","Row Start",null,{"$f":"MAX(D:D)","v":268}]
["Hat","Medicine Hat, AB","AB",2,null,"Alberta, Can","AB",{"$f":"COUNTIF(C:C,G2)","v":1},{"$f":"VLOOKUP(G2,$C$2:$D$268,2,FALSE)","v":2}]
["anchorage","Anchorage, AK","AK",3,null,"Alaska","AK",{"$f":"COUNTIF(C:C,G3)","v":1},{"$f":"VLOOKUP(G3,$C$2:$D$268,2,FALSE)","v":3}]
["auburn","Auburn, AL","AL",4,null,"Alabama","AL",6,4]
["bham","Birmingham, AL","AL",5,null,"Arkansas","AR",2,10]
["dothan","Dothan, AL","AL",6,null,"Arizona","AZ",4,12]
["huntsville","Huntsville, AL","AL",7,null,"California","CA",21,16]
["mobile","Mobile, AL","AL",8,null,"Colorado","CO",6,37]
["montgomery","Montgomery, AL","AL",9,null,"Caribbean","CR",1,43]
["fayar","Fayetteville, AR","AR",10,null,"Connecticut","CT",4,44]
["littlerock","Little Rock, AR","AR",11,null,"District of Columbia","DC",2,48]
["flagstaff","Flagstaff, AZ","AZ",12,null,"Delaware","DE",1,50]
["phoenix","Phoenix, AZ","AZ",13,null,"Dubai","DU",1,51]
["prescott","Prescott, AZ","AZ",14,null,"Florida","FL",17,52]
["tucson","Tucson, AZ","AZ",15,null,"Georgia","GA",6,69]
["bakersfield","Bakersfield, CA","CA",16,null,"Guam","GU",1,75]
["chico","Chico, CA","CA",17,null,"Hawaii","HI",1,76]
["Fresno","Fresno, CA","CA",18,null,"Hong Kong","HK",1,77]
["goldcountry","Gold Country, CA","CA",19,null,"Netherlands","NT",1,162]
["humboldt","Humboldt, CA","CA",20,null,"Iowa","IA",4,78]
["inlandempire","Inland Empire, CA","CA",21,null,"Idaho","ID",1,82]
["losangeles","Los Angeles, CA","CA",22,null,"Illinois","IL",9,83]
["modesto","Modesto, CA","CA",23,null,"Indiana","IN",6,92]
["monterey","Monterey, CA","CA",24,null,"Kansas","KS",4,98]
["orangecounty","Orange County, CA","CA",25,null,"Kentucky","KY",4,102]
["palmsprings","Palm Springs, CA","CA",26,null,"Louisiana","LA",5,106]
["redding","Redding, CA","CA",27,null,"Massachusetts","MA",7,111]
["Sacramento","Sacramento, CA","CA",28,null,"Maryland","MD",6,118]
["sandiego","San Diego, CA","CA",29,null,"Maine","ME",2,124]
["santabarbara","Santa Barbara, CA","CA",30,null,"Michigan","MI",10,126]
["sfbay","San Francisco, CA","CA",31,null,"Minnesota","MN",4,136]
["slo","San Luis Obispo, CA","CA",32,null,"Missouri","MO",3,140]
["Stockton","Stockton, CA","CA",33,null,"Mississippi","MS",2,143]
["Ventura","Ventura, CA","CA",34,null,"Montana","MT",1,145]
["visalia","Visalia, CA","CA",35,null,"North Carolina","NC",7,146]
["yubasutter","Yuba City, CA","CA",36,null,"North Dakota","ND",1,153]
["boulder","Boulder, CO","CO",37,null,"Nebraska","NE",2,154]
["cosprings","Colorado Springs, CO","CO",38,null,"New Hampshire","NH",1,156]
["denver","Denver, CO","CO",39,null,"New Jersey","NJ",4,157]
["fortcollins","Fort Collins, CO","CO",40,null,"New Mexico","NM",1,161]
["rockies","Colorado","CO",41,null,"Nevada","NV",2,163]
["westslope","Western Slope, CO","CO",42,null,"New York","NY",13,165]
["Caribbean","Caribbean","CR",43,null,"Ohio","OH",11,178]
["hartford","Hartford, CT","CT",44,null,"Oklahoma","OK",2,189]
["newhaven","New Haven, CT","CT",45,null,"Oregon","OR",7,191]
["newlondon","New London, CT","CT",46,null,"Pennsylvania","PA",13,198]
["nwct","Northwest, CT","CT",47,null,"Rhode Island","RI",1,211]
["dc","Washington, DC","DC",48,null,"Russia","RU",1,212]
["washingtondc","Washington, DC","DC",49,null,"South Carolina","SC",5,213]
["delaware","Delaware","DE",50,null,"South Dakota","SD",1,218]
["dubai","Dubai","DU",51,null,"Tennessee","TN",6,219]
["daytona","Daytona Beach, FL","FL",52,null,"Texas","TX",13,225]
["fortmyers","Fort Myers, FL","FL",53,null,"Utah","UT",3,238]
["gainesville","Gainesville, Fl","Fl",54,null,"Virginia","VA",6,241]
["jacksonville","Jacksonville, FL","FL",55,null,"Vietnam","VN",1,247]
["keys","Key West, FL","FL",56,null,"Vermont","VT",1,248]
["lakeland","Lakeland, FL","FL",57,null,"Washington","WA",7,249]
["miami","Miami, FL","FL",58,null,"Wisconsin","WI",10,256]
["ocala","Ocala, FL","FL",59,null,"West Virginia","WV",2,266]
["Orlando","Orlando, FL","FL",60,null,"Wyoming","WY",1,268]
["panamacity","Panama City, FL","FL",61]
["pensacola","Pensacola, FL","FL",62]
["Sarasota","Sarasota, FL","FL",63]
["spacecoast","Space Coast, FL","FL",64]
["staugustine","Saint Augustine, FL","FL",65]
["tallahassee","Tallahassee, FL","FL",66]
["tampa","Tampa, FL","FL",67]
["treasure","Treasure Coast, FL","FL",68]
["athensga","Athens, GA","GA",69]
["atlanta","Atlanta, GA","GA",70]
["Chattanooga","Chattanooga, GA","GA",71]
["columbusga","Columbus, GA","GA",72]
["macon","Macon, GA","GA",73]
["Savannah","Savannah, GA","GA",74]
["micronesia","Micronesia, GU","GU",75]
["honolulu","Honolulu, HI","HI",76]
["hongkong","Hong Kong","HK",77]
["ames","Ames, IA","IA",78]
["cedarrapids","Cedar Rapids, IA","IA",79]
["desmoines","Desmoines, IA","IA",80]
["iowacity","Iowa City, IA","IA",81]
["boise","Boise, ID","ID",82]
["bn","Bloomington, IL","IL",83]
["Carbondale","Carbondale, IL","IL",84]
["chambana","Champaign Urbana, IL","IL",85]
["chicago","Chicago, IL","IL",86]
["decatur","Decatur, IL","IL",87]
["bn","Bloomington, IL","IL",88]
["peoria","Peoria, IL","IL",89]
["rockford","Rockford, IL","IL",90]
["springfieldil","Springfield, IL","IL",91]
["bloomington","Bloomington, IN","IN",92]
["Evansville","Evansville, IN","IN",93]
["fortwayne","Fort Wayne, IN","IN",94]
["indianapolis","Indianapolis, IN","IN",95]
["southbend","South Bend, IN","IN",96]
["terrehaute","Terre Haute, IN","IN",97]
["kansascity","Kansas City, KS","KS",98]
["lawrence","Lawrence, KS","KS",99]
["topeka","Topeka, KS","KS",100]
["Wichita","Wichita, KS","KS",101]
["bgky","Boling Green, KY","KY",102]
["lexington","Lexington, KY","KY",103]
["louisville","Louisville, KY","KY",104]
["westky","Western, KY","KY",105]
["batonrouge","Baton Rouge, LA","LA",106]
["lafayette","Lafayette, LA","LA",107]
["monroe","Monroe, LA","LA",108]
["neworleans","New Orleans, LA","LA",109]
["Shreveport","Shreveport, LA","LA",110]
["boston","Boston, MA","MA",111]
["capecod","Cape Cod, MA","MA",112]
["medford","Medford, MA","MA",113]
["southcoast","South Coast, MA","MA",114]
["westernmass","Western, MA","MA",115]
["winstonsalem","Winston-Salem, MA","MA",116]
["Worcester","Worcester, MA","MA",117]
["annapolis","Annapolis, MD","MD",118]
["baltimore","Baltimore, MD","MD",119]
["easternshore","Eastern Shore, MD","MD",120]
["fredericksburg","Fredericksburg, MD","MD",121]
["smd","Southern, MD","MD",122]
["westmd","Western, MD","MD",123]
["augusta","Augusta, ME","ME",124]
["maine","Maine","ME",125]
["annarbor","Ann Arbor, MI","MI",126]
["centralmich","Central, MI","MI",127]
["detroit","Detroit, MI","MI",128]
["flint","Flint, MI","MI",129]
["grandrapids","Grand Rapids, MI","MI",130]
["kalamazoo","Kalamazoo, MI","MI",131]
["lansing","Lansing, MI","MI",132]
["muskegon","Muskegon, MI","MI",133]
["nmi","Northern, MI","MI",134]
["Saginaw","Saginaw, MI","MI",135]
["duluth","Duluth, MN","MN",136]
["minneapolis","Minneapolis, MN","MN",137]
["rmn","Rochester, MN","MN",138]
["stcloud","Saint Cloud, MN","MN",139]
["columbiamo","Columbia, MO","MO",140]
["Springfield","Springfield, MO","MO",141]
["stlouis","Saint Louis, MO","MO",142]
["gulfport","Gulfport, MS","MS",143]
["jackson","Jackson, MS","MS",144]
["montana","Montana","MT",145]
["asheville","Asheville, NC","NC",146]
["Charlotte","Charlotte, NC","NC",147]
["eastnc","Eastern, NC","NC",148]
["Fayetteville","Fayetteville, NC","NC",149]
["greensboro","Greensboro, NC","NC",150]
["raleigh","Raleigh, NC","NC",151]
["Wilmington","Wilmington, NC","NC",152]
["Fargo","Fargo, ND","ND",153]
["lincoln","Lincoln, NE","NE",154]
["Omaha","Omaha, NE","NE",155]
["nh","New Hampshire","NH",156]
["cnj","Central, NJ","NJ",157]
["jerseyshore","Jersey Shore, NJ","NJ",158]
["newjersey","New Jersey","NJ",159]
["southjersey","South Jersey, NJ","NJ",160]
["albuquerque","Albuquerque, NM","NM",161]
["amsterdam","Amsterdam, NT","NT",162]
["lasvegas","Las Vegas, NV","NV",163]
["reno","Reno, NV","NV",164]
["albany","Albany, NY","NY",165]
["binghamton","Binghamton, NY","NY",166]
["buffalo","Buffalo, NY","NY",167]
["Catskills","Catskills, NY","NY",168]
["Elmira","Elmira, NY","NY",169]
["hudsonvalley","Hudson Valley, NY","NY",170]
["ithaca","Ithaca, NY","NY",171]
["longisland","Long Island, NY","NY",172]
["newyork","New York, NY","NY",173]
["plattsburgh","Plattsburgh, NY","NY",174]
["rochester","Rochester, NY","NY",175]
["Syracuse","Syracuse, NY","NY",176]
["Utica","Utica, NY","NY",177]
["akroncanton","Akron/Canton, OH","OH",178]
["athensohio","Athens, OH","OH",179]
["Cincinnati","Cincinnati, OH","OH",180]
["Cleveland","Cleveland, OH","OH",181]
["Columbus","Columbus, OH","OH",182]
["dayton","Dayton, OH","OH",183]
["dublin","Dublin, OH","OH",184]
["mansfield","Mansfield, OH","OH",185]
["Sandusky","Sandusky, OH","OH",186]
["toledo","Toledo, OH","OH",187]
["youngstown","Youngstown, OH","OH",188]
["oklahomacity","Oklahoma City, OK","OK",189]
["tulsa","Tulsa, OK","OK",190]
["bend","Bend, OR","OR",191]
["corvallis","Corvallis, OR","OR",192]
["Eugene","Eugene, OR","OR",193]
["oregoncoast","Oregon Coast, OR","OR",194]
["portland","Portland, OR","OR",195]
["roseburg","Roseburg, OR","OR",196]
["Salem","Salem, OR","OR",197]
["pennstate","State College, PA","PA",198]
["allentown","Allentown, PA","PA",199]
["altoona","Altoona, PA","PA",200]
["Erie","Erie, PA","PA",201]
["harrisburg","Harrisburg, PA","PA",202]
["lancaster","Lancaster, PA","PA",203]
["philadelphia","Philadelphia, PA","PA",204]
["pittsburgh","Pittsburgh, PA","PA",205]
["poconos","Poconos, PA","PA",206]
["reading","Reading, PA","PA",207]
["Scranton","Scranton, PA","PA",208]
["williamsport","Williamsport, PA","PA",209]
["york","York, PA","PA",210]
["providence","Providence, RI","RI",211]
["moscow","Moscow, RU","RU",212]
["Charleston","Charleston, SC","SC",213]
["Columbia","Columbia, SC","SC",214]
["greenville","Greenville, SC","SC",215]
["florencesc","Florence, SC","SC",216]
["myrtlebeach","Myrtle Beach, SC","SC",217]
["sd","South Dakota","SD",218]
["clarksville","Clarksville, TN","TN",219]
["jacksontn","Jackson, TN","TN",220]
["knoxville","Knoxville, TN","TN",221]
["memphis","Memphis, TN","TN",222]
["nashville","Nashville, TN","TN",223]
["tricities","Tri-Cities, TN","TN",224]
["abilene","Abilene, TX","TX",225]
["amarillo","Amarillo, TX","TX",226]
["austin","Austin, TX","TX",227]
["collegestation","College Station, TX","TX",228]
["corpuschristi","Corpus Christi, TX","TX",229]
["dallas","Dallas, TX","TX",230]
["easttexas","East TX","TX",231]
["houston","Houston, TX","TX",232]
["killeen","Killeen, TX","TX",233]
["lubbock","Lubbock, TX","TX",234]
["sanantonio","San Antonio, TX","TX",235]
["sanmarcos","San Marcos, TX","TX",236]
["Waco","Waco, TX","TX",237]
["provo","Provo, UT","UT",238]
["saltlakecity","Salt Lake City, UT","UT",239]
["stgeorge","Saint George, UT","UT",240]
["blacksburg","Blacksburg, VA","VA",241]
["Charlottesville","Charlottesville, VA","VA",242]
["harrisonburg","Harrisonburg, VA","VA",243]
["norfolk","Norfolk, VA","VA",244]
["richmond","Richmond, VA","VA",245]
["roanoke","Roanoke, VA","VA",246]
["vietnam","Vietnam","VN",247]
["burlington","Burlington, VT","VT",248]
["bellingham","Bellingham, WA","WA",249]
["kpr","Tri-Cities, WA","WA",250]
["Seattle","Seattle, WA","WA",251]
["skagit","Skagit, WA","WA",252]
["Spokane","Spokane, WA","WA",253]
["wenatchee","Wenatchee, WA","WA",254]
["yakima","Yakima, WA","WA",255]
["appleton","Appleton, WI","WI",256]
["eauclaire","Eau Claire, WI","WI",257]
["greenbay","Greenbay WI","WI",258]
["janesville","Janesville, WI","WI",259]
["lacrosse","La Crosse,  WI","WI",260]
["madison","Madison, WI","WI",261]
["milwaukee","Milwaukee, WI","WI",262]
["racine","Racine, WI","WI",263]
["Sheboygan","Sheboygan, WI","WI",264]
["Wausau","Wausau, WI","WI",265]
["charlestonwv","Charleston, WV","WV",266]
["wheeling","Wheeling, WV","WV",267]
["Wyoming","Wyoming","WY",268]